bitfinex/quotes_SOLUSD_20220130
["timestamp","ask_amount","ask_price","bid_price","bid_amount"]
[1643514795581,1.46551617,94.508,94.422,1.21003445]
[1643514795879,6.0,94.502,94.422,1.21003445]
[1643514796082,6.0,94.496,94.422,1.21003445]
[1643514796380,6.0,94.496,94.423,33.6576158]
[1643514796579,23.4614,94.495,94.423,33.6576158]
[1643514796981,23.4614,94.495,94.424,1.21003445]
[1643514797180,23.4614,94.495,94.433,6.0]
[1643514797379,6.0,94.499,94.433,6.0]
[1643514797582,0.25,94.5,94.44,6.0]
[1643514797883,1.15320839,94.495,94.441,58.04012304]
[1643514798080,1.15320839,94.495,94.441,59.25015749]
[1643514798882,1.15320839,94.495,94.451,6.0]
[1643514802385,1.15320839,94.495,94.452,1.21003445]
[1643514802583,1.15320839,94.495,94.451,6.0]
[1643514802783,1.15320839,94.495,94.451,7.21003445]
[1643514802983,26.01043402,94.519,94.451,7.21003445]
[1643514803387,26.01043402,94.519,94.452,23.6259]
[1643514803787,26.01043402,94.519,94.452,24.83593445]
[1643514806389,6.0,94.509,94.452,24.83593445]
[1643514807988,1.1561411,94.508,94.452,24.83593445]
[1643514810992,1.1561411,94.508,94.452,23.6259]
[1643514812895,1.40636666,94.51,94.452,23.6259]
[1643514813697,6.0,94.5,94.452,23.6259]
[1643514813895,6.25,94.5,94.452,23.6259]
[1643514816100,0.25,94.5,94.452,23.6259]
[1643514816400,1.40636666,94.51,94.452,23.6259]
[1643514818103,1.40636666,94.51,94.437,1.21003445]
[1643514818326,6.0,94.5,94.427,43.85396556]
[1643514818630,29.9072,94.499,94.427,43.85396556]
[1643514818826,29.9072,94.499,94.406,1.45565554]
[1643514819025,6.0,94.492,94.407,34.70362473]
[1643514819426,6.0,94.487,94.407,34.70362473]
[1643514819627,6.0,94.483,94.407,34.70362473]
[1643514820030,0.25,94.49,94.407,34.70362473]
[1643514820230,6.0,94.483,94.408,1.21003445]
[1643514820428,0.25,94.49,94.408,1.21003445]
[1643514820628,6.0,94.487,94.407,34.70362473]
[1643514820831,23.3288,94.486,94.407,34.70362473]
[1643514821029,6.0,94.476,94.407,34.70362473]
[1643514821231,23.3288,94.475,94.407,34.70362473]
[1643514822029,0.25,94.48,94.407,34.70362473]
[1643514822430,6.0,94.487,94.407,34.70362473]
[1643514822635,6.0,94.485,94.407,34.70362473]
[1643514822832,1.14846923,94.474,94.407,34.70362473]
[1643514824836,1.14846923,94.474,94.401,24.6326]
[1643514825036,6.0,94.464,94.4,15.34]
[1643514825236,6.0,94.464,94.35,31.6406]
[1643514825237,22.9175,94.463,94.38,1.45565554]
[1643514825437,22.9175,94.463,94.377,25.59635554]
[1643514825637,22.9175,94.463,94.391,6.0]
[1643514825638,6.0,94.453,94.391,6.0]
[1643514825836,14.218561,94.452,94.391,6.0]
[1643514826039,6.0,94.442,94.396,6.0]
[1643514826237,6.0,94.442,94.386,41.98338628]
[1643514826437,6.0,94.442,94.366,1.45565554]
[1643514826639,6.0,94.441,94.362,1.45565554]
[1643514826837,0.25,94.44,94.36,16.79565554]
[1643514827240,0.25,94.44,94.36,15.34]
[1643514827439,0.25,94.44,94.361,38.37430711]
[1643514828640,6.25,94.44,94.361,38.37430711]
[1643514828842,6.0,94.431,94.361,38.37430711]
[1643514829040,6.0,94.43,94.361,38.37430711]
[1643514829240,6.25,94.43,94.361,38.37430711]
[1643514829645,0.25,94.43,94.36,15.34]
[1643514829842,6.0,94.42,94.36,15.34]
[1643514830041,0.25,94.43,94.36,15.34]
[1643514830243,0.25,94.42,94.36,15.34]
[1643514830542,0.25,94.43,94.36,15.34]
[1643514830741,23.6406,94.43,94.36,15.34]
[1643514831143,6.0,94.42,94.36,15.34]
[1643514831343,6.25,94.42,94.36,15.34]
[1643514832148,6.25,94.42,94.353,0.1527561]
[1643514832445,22.7093,94.419,94.355,33.65960765]
[1643514832646,6.0,94.409,94.353,0.1527561]
[1643514833246,24.0417,94.408,94.353,0.1527561]
[1643514837282,0.25,94.407,94.353,0.1527561]
[1643514837879,6.0,94.398,94.353,0.1527561]
[1643514838279,0.25,94.397,94.353,0.1527561]
[1643514839082,24.376,94.449,94.353,0.1527561]
[1643514839083,24.3127,94.466,94.353,0.1527561]
[1643514839283,1.46551617,94.481,94.353,12.6727561]
[1643514839481,1.46551617,94.513,94.354,29.81793527]
[1643514839783,24.376,94.518,94.391,34.96937548]
[1643514839980,24.376,94.518,94.4,15.34]
[1643514840180,24.376,94.518,94.402,105.4]
[1643514840381,24.376,94.518,94.41,6.0]
[1643514840581,24.376,94.518,94.403,0.25]
[1643514840582,0.25,94.486,94.42,15.34]
[1643514840783,0.25,94.507,94.421,0.25]
[1643514841082,0.25,94.507,94.42,49.05476336]
[1643514841482,0.25,94.507,94.42,15.34]
[1643514842082,0.25,94.517,94.42,15.34]
[1643514842483,6.0,94.508,94.421,44.53875653]
[1643514842793,31.288188,94.507,94.387,9.76072468]
[1643514842982,15.887,94.5,94.39,15.34]
[1643514843183,6.0,94.497,94.397,6.0]
[1643514843384,6.0,94.49,94.397,6.0]
[1643514843583,135.9849,94.489,94.38,6.0]
[1643514843784,135.9849,94.489,94.381,36.75461643]
[1643514843984,6.0,94.486,94.381,42.75461643]
[1643514844388,6.0,94.479,94.381,42.75461643]
[1643514844584,6.0,94.475,94.381,42.75461643]
[1643514844789,0.25,94.474,94.381,42.75461643]
[1643514845385,6.0,94.47,94.381,42.75461643]
[1643514845585,6.0,94.464,94.381,42.75461643]
[1643514845784,0.25,94.463,94.381,42.75461643]
[1643514846585,6.0,94.46,94.381,42.75461643]
[1643514846787,0.25,94.459,94.381,42.75461643]
[1643514847387,0.25,94.459,94.381,36.75461643]
[1643514849486,6.0,94.452,94.381,36.75461643]
[1643514849889,0.25,94.451,94.381,36.75461643]
[1643514850185,6.0,94.449,94.381,36.75461643]
[1643514850386,0.25,94.448,94.381,36.75461643]
[1643514852890,1.14237293,94.447,94.381,36.75461643]
[1643514853291,1.14237293,94.447,94.391,6.0]
[1643514853501,1.14237293,94.447,94.391,18.48]
[1643514853692,1.14237293,94.447,94.392,7.21002734]
[1643514853895,1.14237293,94.447,94.401,6.0]
[1643514854093,1.14237293,94.447,94.402,6.0]
[1643514854294,1.14237293,94.447,94.39,15.34]
[1643514854493,1.14237293,94.447,94.39,12.69427338]
[1643514854695,0.25,94.446,94.39,12.69427338]
[1643514858097,1.14192121,94.445,94.39,12.69427338]
[1643514858296,0.25,94.444,94.39,12.69427338]
[1643514862501,1.14192121,94.445,94.39,12.69427338]
[1643514862704,1.14192121,94.445,94.39,22.56427338]
[1643514863002,24.61916948,94.467,94.39,22.56427338]
[1643514863402,6.0,94.457,94.39,22.56427338]
[1643514863802,0.25,94.456,94.39,22.56427338]
[1643514865308,23.1715,94.456,94.39,22.56427338]
[1643514867906,1.14417961,94.455,94.39,22.56427338]
[1643514868104,1.14417961,94.455,94.39,12.69427338]
[1643514868302,0.25,94.454,94.39,12.69427338]
[1643514871508,1.71551617,94.454,94.39,12.69427338]
[1643514872909,1.14372797,94.453,94.39,12.69427338]
[1643514873307,0.25,94.452,94.39,12.69427338]
[1643514874707,0.25,94.452,94.4,6.0]
[1643514875108,0.25,94.452,94.392,6.0]
[1643514876208,1.14372797,94.453,94.392,6.0]
[1643514876612,1.14372797,94.453,94.393,6.0]
[1643514877610,0.25,94.452,94.393,6.0]
[1643514878014,1.39350214,94.452,94.393,6.0]
[1643514879614,1.14350214,94.452,94.4,6.0]
[1643514880013,1.14350214,94.452,94.404,6.0]
[1643514880917,0.25,94.451,94.404,6.0]
[1643514882817,1.14305047,94.45,94.404,6.0]
[1643514883216,0.25,94.449,94.404,6.0]
[1643514884616,0.25,94.449,94.394,23.2295]
[1643514886919,0.25,94.449,94.395,0.25]
[1643514887122,0.25,94.449,94.395,105.65]
[1643514887319,1.14305047,94.45,94.404,6.0]
[1643514887520,1.14305047,94.45,94.395,106.86002734]
[1643514887521,1.14305047,94.45,94.41,15.34]
[1643514887721,1.14305047,94.45,94.405,6.0]
[1643514887722,1.14305047,94.45,94.421,31.92952241]
[1643514888026,1.14259878,94.474,94.421,31.92952241]
[1643514888221,1.14259878,94.474,94.431,6.0]
[1643514888422,1.14259878,94.474,94.423,105.4]
[1643514888827,1.14259878,94.474,94.434,105.4]
[1643514889023,0.25,94.473,94.421,31.92952241]
[1643514890023,0.25,94.473,94.394,23.26]
[1643514890925,6.0,94.464,94.4,37.20817811]
[1643514891327,0.25,94.463,94.4,37.20817811]
[1643514892031,0.25,94.463,94.41,6.0]
[1643514892425,0.25,94.469,94.41,6.0]
[1643514892624,0.25,94.47,94.41,6.0]
[1643514892825,0.25,94.471,94.41,6.0]
[1643514893027,1.14576019,94.462,94.41,6.0]
[1643514893425,0.25,94.461,94.4,37.20817811]
[1643514894632,0.25,94.461,94.41,6.0]
[1643514895430,0.25,94.461,94.4,6.0]
[1643514895633,0.25,94.461,94.383,22.6509]
[1643514895634,6.0,94.452,94.383,22.6509]
[1643514895830,0.25,94.451,94.383,22.6509]
[1643514896231,0.25,94.451,94.384,35.35840332]
[1643514896435,23.5948,94.451,94.384,35.35840332]
[1643514897835,1.14305047,94.45,94.384,35.35840332]
[1643514898239,0.25,94.449,94.384,35.35840332]
[1643514902862,1.14259878,94.448,94.384,35.35840332]
[1643514903364,0.25,94.447,94.384,35.35840332]
[1643514904063,0.25,94.447,94.394,6.0]
[1643514904862,0.25,94.447,94.384,35.35840332]
[1643514907866,1.14214707,94.446,94.384,35.35840332]
[1643514908264,0.25,94.445,94.384,35.35840332]
[1643514909264,0.25,94.445,94.383,22.6509]
[1643514909869,6.0,94.436,94.383,22.6509]
[1643514910271,0.25,94.435,94.384,36.11997266]
[1643514910872,0.25,94.435,94.394,6.0]
[1643514911077,1.14214707,94.446,94.394,17.03]
[1643514911270,1.14214707,94.446,94.395,0.25]
[1643514911672,1.14214707,94.446,94.395,130.60869625]
[1643514911871,1.14214707,94.446,94.4,6.0]
[1643514912072,1.14214707,94.446,94.4,15.34]
[1643514912272,1.14214707,94.446,94.405,6.0]
[1643514912572,1.14214707,94.446,94.406,22.7658]
[1643514912771,0.25,94.445,94.406,22.7658]
[1643514913172,0.25,94.476,94.406,22.7658]
[1643514913373,0.25,94.476,94.418,32.56416618]
[1643514913576,0.25,94.476,94.428,6.0]
[1643514913774,1.14237294,94.477,94.428,6.0]
[1643514913972,1.14237294,94.477,94.429,6.0]
[1643514914674,1.14237294,94.477,94.42,15.34]
[1643514914878,6.0,94.467,94.4,15.34]
[1643514915078,23.1281,94.466,94.39,15.34]
[1643514915276,23.3781,94.466,94.38,15.34]
[1643514915476,6.0,94.456,94.38,15.34]
[1643514915679,24.4501,94.455,94.381,45.22128381]
[1643514915877,0.25,94.455,94.381,45.22128381]
[1643514916276,0.25,94.455,94.382,22.6733]
[1643514916678,6.25,94.455,94.382,22.6733]
[1643514917484,24.8394,94.454,94.382,22.6733]
[1643514917885,6.0,94.444,94.382,22.6733]
[1643514918084,24.8394,94.443,94.382,22.6733]
[1643514918289,25.0894,94.443,94.382,22.6733]
[1643514918486,6.0,94.433,94.382,22.6733]
[1643514918888,0.25,94.432,94.382,22.6733]
[1643514919907,0.25,94.443,94.382,22.6733]
[1643514920909,0.25,94.453,94.382,22.6733]
[1643514921510,6.0,94.444,94.382,22.6733]
[1643514921911,0.25,94.443,94.382,22.6733]
[1643514922911,1.39146948,94.443,94.382,22.6733]
[1643514924712,1.39146948,94.443,94.383,0.25]
[1643514925112,1.14146948,94.443,94.383,0.25]
[1643514926313,0.25,94.442,94.383,0.25]
[1643514927314,1.14146948,94.443,94.383,0.25]
[1643514927515,1.14146948,94.443,94.392,6.0]
[1643514927722,1.14146948,94.443,94.393,23.8067]
[1643514927922,24.84731772,94.462,94.393,24.0567]
[1643514928123,24.84731772,94.462,94.393,23.8067]
[1643514928424,24.84731772,94.462,94.394,0.25]
[1643514928823,0.25,94.461,94.394,0.25]
[1643514929034,0.25,94.461,94.403,6.0]
[1643514929226,1.14101772,94.462,94.403,19.27]
[1643514929426,1.14101772,94.462,94.404,22.9283]
[1643514929626,1.14101772,94.462,94.415,23.46285503]
[1643514930226,6.0,94.452,94.415,23.46285503]
[1643514930632,1.14101772,94.462,94.415,23.46285503]
[1643514930633,0.25,94.451,94.415,23.46285503]
[1643514930854,0.25,94.461,94.415,23.46285503]
[1643514932661,0.25,94.461,94.39,15.34]
[1643514932662,6.0,94.452,94.39,15.34]
[1643514932856,6.0,94.452,94.391,0.25]
[1643514932857,0.25,94.451,94.391,0.25]
[1643514933058,6.0,94.45,94.391,0.25]
[1643514933257,0.25,94.449,94.391,0.25]
[1643514933558,0.25,94.449,94.391,35.29654774]
[1643514933958,0.25,94.449,94.391,35.04654774]
[1643514934160,0.25,94.449,94.38,22.5386]
[1643514934358,105.4,94.448,94.38,22.5386]
[1643514934558,6.0,94.438,94.38,22.5386]
[1643514934760,0.25,94.437,94.38,22.5386]
[1643514935263,0.25,94.437,94.381,37.18523114]
[1643514935466,24.9933,94.437,94.381,37.18523114]
[1643514935660,24.9933,94.437,94.355,11.19677172]
[1643514935864,6.0,94.427,94.355,11.19677172]
[1643514936060,6.0,94.418,94.343,0.1]
[1643514936260,105.65,94.417,94.369,38.94111088]
[1643514936460,105.4,94.414,94.369,38.94111088]
[1643514936662,6.0,94.407,94.369,38.94111088]
[1643514936861,6.0,94.404,94.369,38.94111088]
[1643514937061,20.11,94.404,94.369,38.94111088]
[1643514937363,0.25,94.403,94.339,0.1]
[1643514937561,0.25,94.403,94.333,39.23593109]
[1643514937562,24.4239,94.403,94.343,6.0]
[1643514937961,6.0,94.393,94.334,0.2]
[1643514938364,0.25,94.392,94.334,0.2]
[1643514939966,6.25,94.392,94.318,0.15320962]
[1643514940566,23.9343,94.391,94.318,0.15320962]
[1643514940969,6.0,94.381,94.318,0.15320962]
[1643514941371,0.25,94.38,94.318,0.15320962]
[1643514941568,5.75,94.381,94.318,0.15320962]
[1643514941771,23.4207,94.38,94.318,0.15320962]
[1643514943370,6.0,94.37,94.318,0.15320962]
[1643514943769,0.25,94.369,94.318,0.15320962]
[1643514944771,0.25,94.389,94.318,0.15320962]
[1643514944971,24.6004,94.389,94.318,0.15320962]
[1643514945372,6.0,94.379,94.318,0.15320962]
[1643514945575,24.5238,94.378,94.318,0.15320962]
[1643514945772,24.7738,94.378,94.318,0.15320962]
[1643514946572,6.0,94.368,94.318,0.15320962]
[1643514946772,0.25,94.367,94.318,0.15320962]
[1643514947778,1.46551617,94.425,94.318,0.15320962]
[1643514947779,22.817,94.399,94.322,6.0]
[1643514947977,0.1,94.821,94.322,6.0]
[1643514947978,22.567,94.436,94.354,30.90727633]
[1643514948578,105.4,94.435,94.364,6.0]
[1643514948978,105.4,94.435,94.354,30.90727633]
[1643514949179,15.899,94.43,94.354,30.90727633]
[1643514949581,22.567,94.436,94.354,30.90727633]
[1643514949582,105.4,94.429,94.354,30.90727633]
[1643514950079,6.0,94.419,94.354,30.90727633]
[1643514950281,0.25,94.418,94.354,30.90727633]
[1643514950680,6.0,94.41,94.354,30.90727633]
[1643514950880,6.0,94.41,94.353,0.1527561]
[1643514950881,0.25,94.409,94.353,0.1527561]
[1643514951080,23.3904,94.409,94.353,0.1527561]
[1643514951882,23.1404,94.409,94.353,0.1527561]
[1643514952682,6.0,94.399,94.353,0.1527561]
[1643514953281,0.25,94.398,94.353,0.1527561]
[1643514959009,6.0,94.399,94.353,0.1527561]
[1643514959209,1.46551617,94.432,94.353,0.1527561]
[1643514959413,23.3544,94.431,94.353,0.1527561]
[1643514959611,6.0,94.421,94.353,0.1527561]
[1643514960611,23.3544,94.431,94.353,0.1527561]
[1643514961712,0.25,94.43,94.353,0.1527561]
[1643514961912,6.0,94.421,94.353,0.1527561]
[1643514962415,0.25,94.42,94.353,0.1527561]
[1643514963412,6.25,94.42,94.353,0.1527561]
[1643514966217,23.7601,94.419,94.353,0.1527561]
[1643514966417,0.25,94.418,94.353,0.1527561]
[1643514966618,6.0,94.409,94.353,0.1527561]
[1643514966816,0.25,94.408,94.353,0.1527561]
[1643514974630,0.25,94.408,94.353,0.3055122]
[1643514978633,0.25,94.408,94.361,26.80444026]
[1643514979036,1.46551617,94.427,94.362,0.25]
[1643514979237,114.25004046,94.438,94.37,15.34]
[1643514979437,48.5913742,94.438,94.373,38.0]
[1643514979638,1.46209028,94.465,94.384,38.0]
[1643514979939,1.46209028,94.479,94.39,15.34]
[1643514980139,1.46209028,94.486,94.4,6.0]
[1643514980342,1.46209028,94.478,94.41,15.34]
[1643514980539,1.46209028,94.471,94.41,15.34]
[1643514980938,1.46209028,94.473,94.42,6.0]
[1643514981137,0.25,94.47,94.42,6.0]
[1643514981337,0.25,94.473,94.42,6.0]
[1643514981541,0.25,94.473,94.421,0.25]
[1643514981740,1.46209028,94.479,94.421,0.25]
[1643514981941,35.57025943,94.478,94.421,0.25]
[1643514982340,35.57025943,94.478,94.421,6.25]
[1643514982943,1.14801777,94.472,94.421,6.25]
[1643514983364,0.25,94.471,94.43,6.0]
[1643514983570,0.25,94.471,94.42,15.34]
[1643514983968,39.2480634,94.471,94.42,15.34]
[1643514984166,6.0,94.462,94.42,15.34]
[1643514984366,0.25,94.461,94.42,15.34]
[1643514984867,1.14801777,94.472,94.43,6.0]
[1643514985870,1.14801777,94.472,94.43,18.88]
[1643514986267,1.14801777,94.472,94.431,0.25]
[1643514987768,0.25,94.471,94.431,0.25]
[1643514988167,0.25,94.486,94.43,6.0]
[1643514988368,0.25,94.486,94.431,0.25]
[1643514991370,0.25,94.486,94.43,6.0]
[1643514991571,0.25,94.486,94.431,0.25]
[1643514992972,1.15095191,94.485,94.431,0.25]
[1643514993380,0.25,94.484,94.431,0.25]
[1643514993573,0.25,94.484,94.44,15.34]
[1643514993773,0.25,94.484,94.441,0.25]
[1643514993972,0.25,94.484,94.45,6.0]
[1643514994372,1.15095191,94.485,94.451,0.25]
[1643514994774,1.15095191,94.485,94.44,15.34]
[1643514995074,1.15095191,94.485,94.42,15.34]
[1643514995273,1.15095191,94.485,94.426,6.0]
[1643514995473,1.15095191,94.485,94.43,6.0]
[1643514995676,0.25,94.484,94.43,6.0]
[1643514995874,1.15095191,94.485,94.43,6.0]
[1643514996878,1.15095191,94.485,94.431,0.25]
[1643514998077,42.45383048,94.499,94.44,6.0]
[1643514998281,0.25,94.498,94.441,0.25]
[1643514998679,0.25,94.498,94.441,6.25]
[1643514999282,1.15117758,94.509,94.441,6.25]
[1643514999482,1.15117758,94.509,94.45,15.34]
[1643514999680,1.15117758,94.509,94.45,24.92]
[1643514999883,1.15117758,94.509,94.46,6.0]
[1643515000080,1.15117758,94.509,94.47,15.34]
[1643515000282,1.15117758,94.509,94.471,0.25]
[1643515000480,1.15117758,94.509,94.48,6.0]
[1643515000885,1.15117758,94.509,94.481,0.25]
[1643515001784,1.15117758,94.509,94.48,6.0]
[1643515002007,0.25,94.508,94.47,15.34]
[1643515002983,1.4061411,94.508,94.47,15.34]
[1643515006588,1.1561411,94.508,94.47,15.34]
[1643515007891,43.23613439,94.514,94.47,15.34]
[1643515008692,0.25,94.513,94.47,15.34]
[1643515010916,29.95640059,94.517,94.471,9.41199128]
[1643515011619,29.45640059,94.517,94.47,15.34]
[1643515011818,6.0,94.507,94.44,15.34]
[1643515012018,6.0,94.507,94.431,24.507]
[1643515012019,6.0,94.504,94.431,24.507]
[1643515012219,24.974,94.503,94.431,24.507]
[1643515012419,13.5977329,94.502,94.431,24.507]
[1643515012620,13.5977329,94.502,94.433,9.54617665]
[1643515012822,0.25,94.501,94.433,9.54617665]
[1643515013823,13.5977329,94.502,94.433,9.54617665]
[1643515014121,0.25,94.501,94.443,6.0]
[1643515014521,0.25,94.501,94.44,15.34]
[1643515016227,6.0,94.492,94.44,15.34]
[1643515016623,6.25,94.491,94.44,15.34]
[1643515016825,0.25,94.49,94.44,15.34]
[1643515017025,24.2705,94.501,94.441,0.25]
[1643515017224,0.25,94.5,94.441,11.95]
[1643515017424,0.25,94.5,94.451,3.49968986]
[1643515018428,13.5977329,94.502,94.451,3.49968986]
[1643515024432,1.46209028,94.506,94.451,3.49968986]
[1643515025632,31.4263944,94.505,94.451,3.49968986]
[1643515026932,1.46209028,94.504,94.451,3.49968986]
[1643515027231,1.46209028,94.503,94.451,3.49968986]
[1643515028332,0.25,94.51,94.451,3.49968986]
[1643515028333,1.46209028,94.506,94.451,3.49968986]
[1643515028535,1.46209028,94.506,94.461,6.0]
[1643515028734,1.46209028,94.515,94.461,6.0]
[1643515028936,24.4558,94.527,94.461,6.0]
[1643515028937,1.46209028,94.516,94.47,6.0]
[1643515029135,1.46209028,94.517,94.47,6.0]
[1643515029339,1.46209028,94.516,94.471,9.54617665]
[1643515029835,1.46209028,94.515,94.471,9.54617665]
[1643515030236,1.46209028,94.516,94.471,9.54617665]
[1643515030738,1.46209028,94.518,94.471,9.54617665]
[1643515031135,1.46209028,94.518,94.471,9.04617665]
[1643515031536,1.46209028,94.518,94.471,21.98617665]
[1643515032136,1.71209028,94.52,94.471,21.98617665]
[1643515032536,1.46209028,94.519,94.481,6.0]
[1643515032738,0.25,94.52,94.481,6.0]
[1643515033145,25.91789028,94.527,94.49,6.0]
[1643515033350,25.91789028,94.527,94.49,19.93]
[1643515033543,1.46209028,94.528,94.491,3.49968986]
[1643515033743,1.46209028,94.529,94.491,3.49968986]
[1643515033944,0.25,94.53,94.501,6.0]
[1643515034343,1.46209028,94.536,94.501,6.0]
[1643515034545,1.46209028,94.537,94.491,3.49968986]
[1643515035149,1.46209028,94.539,94.491,3.49968986]
[1643515036572,1.71209028,94.54,94.491,3.49968986]
[1643515036774,0.25,94.54,94.491,3.49968986]
[1643515036974,0.25,94.54,94.501,6.0]
[1643515037374,1.46209028,94.543,94.501,6.0]
[1643515037576,6.0,94.533,94.501,6.0]
[1643515037775,6.0,94.533,94.491,3.49968986]
[1643515038377,6.25,94.54,94.491,3.49968986]
[1643515038577,6.25,94.54,94.491,2.99968986]
[1643515039581,0.25,94.54,94.501,6.0]
[1643515039784,1.46209028,94.547,94.51,15.34]
[1643515039981,1.46209028,94.549,94.51,15.34]
[1643515040383,43.85737638,94.548,94.511,9.01450719]
[1643515040581,42.3952861,94.548,94.511,9.01450719]
[1643515041081,42.3952861,94.548,94.51,15.34]
[1643515041682,43.85737638,94.548,94.51,15.34]
[1643515042082,24.60879028,94.55,94.51,15.34]
[1643515042284,23.1467,94.55,94.51,15.34]
[1643515042482,23.1467,94.55,94.52,6.0]
[1643515042683,23.1467,94.55,94.51,15.34]
[1643515042684,0.25,94.55,94.51,15.34]
[1643515042883,1.46209028,94.553,94.51,15.34]
[1643515043482,1.46209028,94.556,94.51,15.34]
[1643515043683,1.46209028,94.556,94.51,26.68]
[1643515045590,1.46209028,94.557,94.51,26.68]
[1643515046791,1.46209028,94.554,94.51,26.68]
[1643515047692,1.46209028,94.555,94.51,26.68]
[1643515047892,1.46209028,94.556,94.51,26.68]
[1643515048091,1.46209028,94.557,94.51,26.68]
[1643515048291,1.46209028,94.556,94.51,26.68]
[1643515049697,1.46209028,94.557,94.51,26.68]
[1643515052200,13.09731906,94.546,94.51,26.68]
[1643515053101,0.25,94.55,94.51,26.68]
[1643515053900,1.46209028,94.552,94.51,26.68]
[1643515054102,43.15210225,94.551,94.51,26.68]
[1643515054303,0.25,94.55,94.51,26.68]
[1643515056906,1.46209028,94.552,94.51,26.68]
[1643515057406,1.46209028,94.553,94.51,26.68]
[1643515057605,40.92257326,94.554,94.51,26.68]
[1643515058009,1.46209028,94.549,94.51,26.68]
[1643515059308,0.25,94.55,94.51,26.68]
[1643515059309,1.71209028,94.55,94.51,26.68]
[1643515059507,1.46209028,94.549,94.51,26.68]
[1643515060007,0.25,94.55,94.51,26.68]
[1643515060412,1.46209028,94.552,94.51,26.68]
[1643515061007,1.46209028,94.548,94.51,26.68]
[1643515061408,1.71209028,94.55,94.51,26.68]
[1643515061610,0.25,94.55,94.51,26.68]
[1643515062040,1.46209028,94.551,94.51,26.93]
[1643515062213,1.46209028,94.551,94.511,105.4]
[1643515062411,1.46209028,94.551,94.52,6.0]
[1643515062612,1.46209028,94.563,94.53,15.34]
[1643515062813,1.46209028,94.573,94.54,15.34]
[1643515063016,1.46209028,94.576,94.54,15.34]
[1643515063215,1.46209028,94.576,94.541,2.78564383]
[1643515063916,0.25,94.58,94.541,2.78564383]
[1643515064416,1.46209028,94.583,94.541,2.78564383]
[1643515064616,1.46209028,94.584,94.541,2.78564383]
[1643515064816,0.25,94.59,94.541,2.78564383]
[1643515064817,1.46209028,94.583,94.541,2.78564383]
[1643515066520,1.46209028,94.586,94.541,2.78564383]
[1643515067621,1.46209028,94.586,94.541,13.22564383]
[1643515068824,1.46209028,94.585,94.541,13.22564383]
[1643515069424,1.46209028,94.585,94.54,15.34]
[1643515069652,6.0,94.575,94.498,121.3037]
[1643515069849,7.46209028,94.575,94.51,15.34]
[1643515070052,1.46209028,94.574,94.512,6.0]
[1643515070253,1.46209028,94.574,94.513,24.9292]
[1643515070453,1.46209028,94.576,94.514,9.94322529]
[1643515071057,1.46209028,94.574,94.514,9.94322529]
[1643515071658,1.46209028,94.576,94.514,9.94322529]
[1643515071858,1.46209028,94.575,94.514,9.94322529]
[1643515072064,23.5676,94.578,94.514,9.94322529]
[1643515072065,25.02969028,94.578,94.514,9.94322529]
[1643515073066,1.46209028,94.577,94.514,9.94322529]
[1643515074461,1.46209028,94.574,94.514,9.94322529]
[1643515075161,1.46209028,94.573,94.514,9.94322529]
[1643515075562,22.52969028,94.578,94.514,9.94322529]
[1643515077264,0.25,94.577,94.514,9.94322529]
[1643515077464,22.52969028,94.578,94.514,9.94322529]
[1643515077665,22.52969028,94.578,94.515,0.25]